[Event "Titled Tuesday Blitz January 03 Early 2023"]
[White "Deac, Bogdan-Daniel"]
[Black "Antonica, Dragos-Andrei"]
[WhiteFideId "1226380"]
[BlackFideId "1246372"]
[WhiteElo "2700"]
[BlackElo "2373"]
[Result "1-0"]
[Round "02"]
[TimeControl "180+2"]
[Date "2023.01.03"]
[WhiteClock "0:01:33"]
[BlackClock "0:01:26"]

1. b3 {[%clk 0:03:00]}  e5 {[%clk 0:02:59]} 2. Bb2 {[%clk 0:03:01]}  Nc6 {[%clk 0:02:59]} 3. Nf3 {[%clk 0:03:01]}  d6 {[%clk 0:02:55]} 4. c4 {[%clk 0:03:01]}  f5 {[%clk 0:02:54]} 5. e3 {[%clk 0:02:59]}  Nf6 {[%clk 0:02:54]} 6. d3 {[%clk 0:02:59]}  g6 {[%clk 0:02:53]} 7. g3 {[%clk 0:02:59]}  Bg7 {[%clk 0:02:54]} 8. Bg2 {[%clk 0:03:00]}  h6 {[%clk 0:02:54]} 9. O-O {[%clk 0:03:00]}  O-O {[%clk 0:02:54]} 10. Nc3 {[%clk 0:03:00]}  Be6 {[%clk 0:02:54]} 11. a3 {[%clk 0:02:59]}  a5 {[%clk 0:02:52]} 12. Qc2 {[%clk 0:02:57]}  Kh7 {[%clk 0:02:52]} 13. Rad1 {[%clk 0:02:49]}  Qe7 {[%clk 0:02:49]} 14. Nd2 {[%clk 0:02:46]}  Bf7 {[%clk 0:02:48]} 15. Rde1 {[%clk 0:02:43]}  Rad8 {[%clk 0:02:43]} 16. Nd5 {[%clk 0:02:41]}  Nxd5 {[%clk 0:02:39]} 17. cxd5 {[%clk 0:02:41]}  Na7 {[%clk 0:02:39]} 18. f4 {[%clk 0:02:36]}  Nc8 {[%clk 0:02:37]} 19. Nc4 {[%clk 0:02:25]}  Nb6 {[%clk 0:02:32]} 20. Nxa5 {[%clk 0:02:24]}  Nxd5 {[%clk 0:02:29]} 21. Nxb7 {[%clk 0:02:19]}  Rb8 {[%clk 0:02:27]} 22. Na5 {[%clk 0:02:18]}  Qd7 {[%clk 0:02:21]} 23. e4 {[%clk 0:02:15]}  fxe4 {[%clk 0:02:20]} 24. dxe4 {[%clk 0:02:11]}  Ne7 {[%clk 0:02:09]} 25. fxe5 {[%clk 0:02:01]}  Bxe5 {[%clk 0:02:09]} 26. Bxe5 {[%clk 0:02:00]}  dxe5 {[%clk 0:02:10]} 27. b4 {[%clk 0:02:00]}  Be6 {[%clk 0:02:08]} 28. Rd1 {[%clk 0:02:00]}  Rxf1+ {[%clk 0:01:58]} 29. Bxf1 {[%clk 0:02:00]}  Qc8 {[%clk 0:01:53]} 30. Qc5 {[%clk 0:01:58]}  Qf8 {[%clk 0:01:42]} 31. Bg2 {[%clk 0:01:41]}  Qf6 {[%clk 0:01:30]} 32. Rf1 {[%clk 0:01:36]}  Qg5 {[%clk 0:01:31]} 33. h4 {[%clk 0:01:35]}  Qxg3 {[%clk 0:01:27]} 34. Qxe7+ {[%clk 0:01:35]}  Kh8 {[%clk 0:01:28]} 35. Qf6+ {[%clk 0:01:35]}  Kh7 {[%clk 0:01:28]} 36. Qxe6 {[%clk 0:01:35]}  Qe3+ {[%clk 0:01:26]} 37. Kh2 {[%clk 0:01:33]} 1-0


[Site "https://www.chess.com"]

[Event "Titled Tuesday Blitz January 03 Early 2023"]
[White "Naroditsky, Daniel"]
[Black "Sychev, Klementy"]
[WhiteFideId "2026961"]
[BlackFideId "4114060"]
[WhiteElo "2618"]
[BlackElo "2547"]
[Result "1/2-1/2"]
[Round "02"]
[TimeControl "180+2"]
[Date "2023.01.03"]
[WhiteClock "0:00:04"]
[BlackClock "0:00:03"]

1. e4 {[%clk 0:03:00]}  e5 {[%clk 0:02:55]} 2. Nf3 {[%clk 0:02:51]}  Nc6 {[%clk 0:02:55]} 3. Bb5 {[%clk 0:02:49]}  a6 {[%clk 0:02:54]} 4. Ba4 {[%clk 0:02:49]}  b5 {[%clk 0:02:52]} 5. Bb3 {[%clk 0:02:49]}  Na5 {[%clk 0:02:53]} 6. d4 {[%clk 0:02:48]}  exd4 {[%clk 0:02:51]} 7. O-O {[%clk 0:02:46]}  Bb7 {[%clk 0:02:41]} 8. c3 {[%clk 0:02:43]}  Nxb3 {[%clk 0:02:28]} 9. axb3 {[%clk 0:02:44]}  Nf6 {[%clk 0:02:19]} 10. e5 {[%clk 0:02:40]}  Nd5 {[%clk 0:02:14]} 11. Qxd4 {[%clk 0:02:25]}  Be7 {[%clk 0:02:11]} 12. Qg4 {[%clk 0:02:24]}  Kf8 {[%clk 0:01:31]} 13. Rd1 {[%clk 0:02:22]}  h5 {[%clk 0:01:29]} 14. Qe4 {[%clk 0:02:03]}  Nxc3 {[%clk 0:01:11]} 15. Qxb7 {[%clk 0:02:03]}  Rb8 {[%clk 0:01:03]} 16. Qxb8 {[%clk 0:01:53]}  Ne2+ {[%clk 0:01:02]} 17. Kf1 {[%clk 0:01:53]}  Qxb8 {[%clk 0:01:02]} 18. Kxe2 {[%clk 0:01:54]}  b4 {[%clk 0:00:56]} 19. Nbd2 {[%clk 0:01:51]}  g5 {[%clk 0:00:49]} 20. Nc4 {[%clk 0:01:48]}  g4 {[%clk 0:00:47]} 21. Nd4 {[%clk 0:01:48]}  Qb7 {[%clk 0:00:44]} 22. Ne3 {[%clk 0:01:35]}  Bg5 {[%clk 0:00:33]} 23. Ndf5 {[%clk 0:01:27]}  Bxe3 {[%clk 0:00:22]} 24. Nxe3 {[%clk 0:01:17]}  Qb5+ {[%clk 0:00:18]} 25. Nc4 {[%clk 0:01:18]}  Kg7 {[%clk 0:00:17]} 26. Bg5 {[%clk 0:01:14]}  Kg6 {[%clk 0:00:17]} 27. Bf6 {[%clk 0:01:12]}  Re8 {[%clk 0:00:17]} 28. Ra5 {[%clk 0:01:11]}  Qc6 {[%clk 0:00:16]} 29. Rad5 {[%clk 0:01:12]}  Qxf6 {[%clk 0:00:13]} 30. Rxd7 {[%clk 0:01:09]}  Rxe5+ {[%clk 0:00:10]} 31. Kf1 {[%clk 0:01:02]}  Rf5 {[%clk 0:00:10]} 32. R1d2 {[%clk 0:01:01]}  Qh4 {[%clk 0:00:03]} 33. Kg1 {[%clk 0:00:58]}  Qg5 {[%clk 0:00:03]} 34. Ne3 {[%clk 0:00:51]}  Re5 {[%clk 0:00:03]} 35. g3 {[%clk 0:00:45]}  h4 {[%clk 0:00:03]} 36. gxh4 {[%clk 0:00:39]}  Qxh4 {[%clk 0:00:04]} 37. R7d4 {[%clk 0:00:35]}  f5 {[%clk 0:00:03]} 38. Ng2 {[%clk 0:00:35]}  Qg5 {[%clk 0:00:03]} 39. Nf4+ {[%clk 0:00:25]}  Kh6 {[%clk 0:00:03]} 40. Kg2 {[%clk 0:00:21]}  Re4 {[%clk 0:00:04]} 41. Rxe4 {[%clk 0:00:20]}  fxe4 {[%clk 0:00:04]} 42. Kg3 {[%clk 0:00:20]}  a5 {[%clk 0:00:05]} 43. Rd5 {[%clk 0:00:20]}  Qf6 {[%clk 0:00:05]} 44. Rh5+ {[%clk 0:00:09]}  Kg7 {[%clk 0:00:05]} 45. Rxa5 {[%clk 0:00:08]}  Qxb2 {[%clk 0:00:05]} 46. Rc5 {[%clk 0:00:07]}  Qxb3+ {[%clk 0:00:05]} 47. Kxg4 {[%clk 0:00:07]}  Qf3+ {[%clk 0:00:05]} 48. Kf5 {[%clk 0:00:07]}  b3 {[%clk 0:00:04]} 49. Rxc7+ {[%clk 0:00:07]}  Kf8 {[%clk 0:00:05]} 50. Ke5 {[%clk 0:00:04]}  b2 {[%clk 0:00:04]} 51. Ne6+ {[%clk 0:00:03]}  Kg8 {[%clk 0:00:04]} 52. Rc8+ {[%clk 0:00:04]}  Kh7 {[%clk 0:00:02]} 53. Ng5+ {[%clk 0:00:05]}  Kg6 {[%clk 0:00:02]} 54. Rg8+ {[%clk 0:00:03]}  Kh5 {[%clk 0:00:02]} 55. Nxf3 {[%clk 0:00:04]}  b1=Q {[%clk 0:00:02]} 56. Nd4 {[%clk 0:00:03]}  Qb2 {[%clk 0:00:01]} 57. Kxe4 {[%clk 0:00:02]}  Qxf2 {[%clk 0:00:02]} 58. Rh8+ {[%clk 0:00:02]}  Kg6 {[%clk 0:00:02]} 59. Rg8+ {[%clk 0:00:02]}  Kf7 {[%clk 0:00:02]} 60. Rg3 {[%clk 0:00:03]}  Qxh2 {[%clk 0:00:02]} 61. Rf3+ {[%clk 0:00:03]}  Kg6 {[%clk 0:00:03]} 62. Re3 {[%clk 0:00:03]}  Qh4+ {[%clk 0:00:03]} 63. Kd3 {[%clk 0:00:04]}  Qg5 {[%clk 0:00:03]} 64. Nf3 {[%clk 0:00:03]}  Qxe3+ {[%clk 0:00:03]} 65. Kxe3 {[%clk 0:00:04]} 1/2-1/2


[Site "https://www.chess.com"]

[Event "Titled Tuesday Blitz January 03 Early 2023"]
[White "Maksimovic, Bojan"]
[Black "Bortnyk, Olexandr"]
[WhiteFideId "14408120"]
[BlackFideId "14120828"]
[WhiteElo "2486"]
[BlackElo "2605"]
[Result "0-1"]
[Round "02"]
[TimeControl "180+2"]
[Date "2023.01.03"]
[WhiteClock "0:01:30"]
[BlackClock "0:02:13"]

1. g3 {[%clk 0:02:59]}  d5 {[%clk 0:02:40]} 2. Bg2 {[%clk 0:02:58]}  Nf6 {[%clk 0:02:39]} 3. Nf3 {[%clk 0:02:51]}  Nc6 {[%clk 0:02:36]} 4. O-O {[%clk 0:02:29]}  e5 {[%clk 0:02:36]} 5. c4 {[%clk 0:02:27]}  dxc4 {[%clk 0:02:35]} 6. Qa4 {[%clk 0:01:44]}  Bd6 {[%clk 0:02:35]} 7. Qxc4 {[%clk 0:01:43]}  O-O {[%clk 0:02:35]} 8. Qc2 {[%clk 0:01:41]}  e4 {[%clk 0:02:31]} 9. Ne1 {[%clk 0:01:40]}  Nd4 {[%clk 0:02:26]} 10. Qd1 {[%clk 0:01:39]}  Re8 {[%clk 0:02:23]} 11. Nc3 {[%clk 0:01:39]}  c5 {[%clk 0:02:24]} 12. e3 {[%clk 0:01:39]}  Bg4 {[%clk 0:02:23]} 13. Qa4 {[%clk 0:01:32]}  Ne2+ {[%clk 0:02:22]} 14. Kh1 {[%clk 0:01:32]}  Nxc3 {[%clk 0:02:12]} 15. dxc3 {[%clk 0:01:30]}  Be2 {[%clk 0:02:13]} 16. Rg1 {[%clk 0:01:30]}  Ng4 {[%clk 0:02:13]} 0-1


[Site "https://www.chess.com"]

[Event "Titled Tuesday Blitz January 03 Early 2023"]
[White "Paravyan, David"]
[Black "Averjanov, Alexey"]
[WhiteFideId "4194985"]
[BlackFideId "14109867"]
[WhiteElo "2601"]
[BlackElo "2399"]
[Result "1-0"]
[Round "02"]
[TimeControl "180+2"]
[Date "2023.01.03"]
[WhiteClock "0:00:44"]
[BlackClock "0:00:07"]

1. e4 {[%clk 0:03:00]}  c6 {[%clk 0:03:00]} 2. d4 {[%clk 0:03:00]}  d5 {[%clk 0:03:00]} 3. e5 {[%clk 0:03:00]}  Bf5 {[%clk 0:03:00]} 4. h4 {[%clk 0:03:01]}  h5 {[%clk 0:03:00]} 5. Bd3 {[%clk 0:03:01]}  Bxd3 {[%clk 0:03:00]} 6. Qxd3 {[%clk 0:03:02]}  e6 {[%clk 0:03:00]} 7. Bg5 {[%clk 0:03:01]}  Qa5+ {[%clk 0:03:00]} 8. Nd2 {[%clk 0:03:01]}  Qa6 {[%clk 0:03:00]} 9. c4 {[%clk 0:02:51]}  Bb4 {[%clk 0:02:58]} 10. b3 {[%clk 0:02:51]}  Nd7 {[%clk 0:02:56]} 11. Ne2 {[%clk 0:02:47]}  Ne7 {[%clk 0:02:53]} 12. O-O {[%clk 0:02:46]}  Ng6 {[%clk 0:02:53]} 13. Nf3 {[%clk 0:02:44]}  Be7 {[%clk 0:02:51]} 14. Bxe7 {[%clk 0:02:38]}  Nxe7 {[%clk 0:02:51]} 15. a4 {[%clk 0:02:30]}  c5 {[%clk 0:02:49]} 16. dxc5 {[%clk 0:02:24]}  Nxc5 {[%clk 0:02:49]} 17. Qe3 {[%clk 0:02:24]}  Nd7 {[%clk 0:02:39]} 18. Ned4 {[%clk 0:02:20]}  O-O-O {[%clk 0:02:10]} 19. c5 {[%clk 0:02:08]}  Kb8 {[%clk 0:01:56]} 20. b4 {[%clk 0:02:05]}  Rc8 {[%clk 0:01:40]} 21. a5 {[%clk 0:02:01]}  Nf5 {[%clk 0:01:26]} 22. Nxf5 {[%clk 0:02:00]}  exf5 {[%clk 0:01:26]} 23. Nd4 {[%clk 0:01:51]}  Qg6 {[%clk 0:01:23]} 24. a6 {[%clk 0:01:49]}  bxa6 {[%clk 0:01:10]} 25. e6 {[%clk 0:01:46]}  fxe6 {[%clk 0:01:03]} 26. Rxa6 {[%clk 0:01:47]}  Qg4 {[%clk 0:00:50]} 27. Rfa1 {[%clk 0:01:22]}  e5 {[%clk 0:00:38]} 28. Rxa7 {[%clk 0:00:59]}  exd4 {[%clk 0:00:34]} 29. Qe6 {[%clk 0:00:46]}  Rh6 {[%clk 0:00:07]} 30. Ra8+ {[%clk 0:00:43]}  Kc7 {[%clk 0:00:07]} 31. R1a7+ {[%clk 0:00:43]}  Kd8 {[%clk 0:00:07]} 32. Qxd7# {[%clk 0:00:44]} 1-0


[Site "https://www.chess.com"]

[Event "Titled Tuesday Blitz January 03 Early 2023"]
[White "Sjugirov, Sanan"]
[Black "Velikanov, Alexander"]
[WhiteFideId "4189302"]
[BlackFideId "2039290"]
[WhiteElo "2712"]
[BlackElo "2339"]
[Result "1-0"]
[Round "02"]
[TimeControl "180+2"]
[Date "2023.01.03"]
[WhiteClock "0:01:42"]
[BlackClock "0:01:06"]

1. e4 {[%clk 0:03:00]}  c5 {[%clk 0:02:59]} 2. Nf3 {[%clk 0:03:01]}  Nc6 {[%clk 0:02:59]} 3. Bb5 {[%clk 0:03:00]}  e6 {[%clk 0:02:54]} 4. Bxc6 {[%clk 0:03:00]}  bxc6 {[%clk 0:02:54]} 5. d3 {[%clk 0:02:57]}  Ne7 {[%clk 0:02:54]} 6. Nbd2 {[%clk 0:02:56]}  f6 {[%clk 0:02:47]} 7. Nh4 {[%clk 0:02:54]}  d5 {[%clk 0:02:36]} 8. O-O {[%clk 0:02:49]}  g5 {[%clk 0:02:28]} 9. Qh5+ {[%clk 0:02:44]}  Kd7 {[%clk 0:02:29]} 10. Nhf3 {[%clk 0:02:43]}  Ng6 {[%clk 0:02:27]} 11. Nb3 {[%clk 0:02:37]}  Bd6 {[%clk 0:02:23]} 12. e5 {[%clk 0:02:28]}  Nxe5 {[%clk 0:02:03]} 13. Nxe5+ {[%clk 0:02:28]}  fxe5 {[%clk 0:01:58]} 14. Bxg5 {[%clk 0:02:28]}  Qe8 {[%clk 0:01:56]} 15. Qh4 {[%clk 0:02:23]}  Ba6 {[%clk 0:01:44]} 16. Rfe1 {[%clk 0:02:20]}  Rg8 {[%clk 0:01:42]} 17. Qxh7+ {[%clk 0:02:15]}  Kc8 {[%clk 0:01:43]} 18. h4 {[%clk 0:02:13]}  c4 {[%clk 0:01:40]} 19. dxc4 {[%clk 0:02:08]}  Bxc4 {[%clk 0:01:41]} 20. Na5 {[%clk 0:02:03]}  Ba6 {[%clk 0:01:40]} 21. Nxc6 {[%clk 0:01:47]}  Rxg5 {[%clk 0:01:28]} 22. hxg5 {[%clk 0:01:46]}  Qxc6 {[%clk 0:01:28]} 23. g6 {[%clk 0:01:46]}  Bf8 {[%clk 0:01:06]} 24. Rxe5 {[%clk 0:01:42]} 1-0


[Site "https://www.chess.com"]

[Event "Titled Tuesday Blitz January 03 Early 2023"]
[White "Ilkhomi, Jaloliddin"]
[Black "Narayanan.S.L"]
[WhiteFideId "14700948"]
[BlackFideId "5058422"]
[WhiteElo "1997"]
[BlackElo "2660"]
[Result "0-1"]
[Round "02"]
[TimeControl "180+2"]
[Date "2023.01.03"]
[WhiteClock "0:00:05"]
[BlackClock "0:01:50"]

1. d4 {[%clk 0:03:00]}  g6 {[%clk 0:02:59]} 2. Nf3 {[%clk 0:03:00]}  Bg7 {[%clk 0:02:59]} 3. Bg5 {[%clk 0:03:00]}  h6 {[%clk 0:02:58]} 4. Bh4 {[%clk 0:03:00]}  f5 {[%clk 0:02:58]} 5. e3 {[%clk 0:02:58]}  d6 {[%clk 0:02:59]} 6. c3 {[%clk 0:02:53]}  Nf6 {[%clk 0:02:59]} 7. Nbd2 {[%clk 0:02:52]}  e6 {[%clk 0:02:57]} 8. Bc4 {[%clk 0:02:49]}  O-O {[%clk 0:02:57]} 9. Qb3 {[%clk 0:02:50]}  Qe7 {[%clk 0:02:56]} 10. Bxf6 {[%clk 0:02:40]}  Bxf6 {[%clk 0:02:55]} 11. e4 {[%clk 0:02:41]}  Bg7 {[%clk 0:02:54]} 12. Bd3 {[%clk 0:02:37]}  d5 {[%clk 0:02:50]} 13. exd5 {[%clk 0:02:19]}  exd5+ {[%clk 0:02:50]} 14. Kd1 {[%clk 0:02:20]}  c6 {[%clk 0:02:49]} 15. Re1 {[%clk 0:02:20]}  Qf7 {[%clk 0:02:49]} 16. Ne5 {[%clk 0:02:14]}  Bxe5 {[%clk 0:02:49]} 17. Rxe5 {[%clk 0:02:15]}  Nd7 {[%clk 0:02:48]} 18. Re2 {[%clk 0:02:15]}  c5 {[%clk 0:02:38]} 19. Qa3 {[%clk 0:02:01]}  b6 {[%clk 0:02:33]} 20. Ke1 {[%clk 0:02:01]}  Re8 {[%clk 0:02:03]} 21. Rxe8+ {[%clk 0:02:00]}  Qxe8+ {[%clk 0:02:04]} 22. Kf1 {[%clk 0:02:01]}  Qf8 {[%clk 0:02:03]} 23. Re1 {[%clk 0:01:58]}  Nf6 {[%clk 0:02:03]} 24. Nf3 {[%clk 0:01:51]}  c4 {[%clk 0:02:04]} 25. Qxf8+ {[%clk 0:01:47]}  Kxf8 {[%clk 0:02:05]} 26. Bc2 {[%clk 0:01:48]}  Bd7 {[%clk 0:02:05]} 27. Ne5 {[%clk 0:01:48]}  Be8 {[%clk 0:02:06]} 28. f3 {[%clk 0:01:44]}  b5 {[%clk 0:02:06]} 29. b4 {[%clk 0:01:35]}  a5 {[%clk 0:02:05]} 30. a3 {[%clk 0:01:35]}  axb4 {[%clk 0:02:05]} 31. axb4 {[%clk 0:01:36]}  Ra3 {[%clk 0:02:05]} 32. Re3 {[%clk 0:01:31]}  f4 {[%clk 0:02:05]} 33. Re2 {[%clk 0:01:15]}  g5 {[%clk 0:02:05]} 34. g3 {[%clk 0:01:04]}  fxg3 {[%clk 0:02:03]} 35. Re3 {[%clk 0:00:57]}  gxh2 {[%clk 0:02:01]} 36. Kg2 {[%clk 0:00:57]}  Ra2 {[%clk 0:02:01]} 37. Re2 {[%clk 0:00:57]}  Nh5 {[%clk 0:02:01]} 38. Kxh2 {[%clk 0:00:56]}  Nf4 {[%clk 0:02:02]} 39. Rf2 {[%clk 0:00:51]}  Ra3 {[%clk 0:02:02]} 40. Ng4 {[%clk 0:00:47]}  h5 {[%clk 0:02:01]} 41. Nf6 {[%clk 0:00:44]}  Rxc3 {[%clk 0:02:02]} 42. Nh7+ {[%clk 0:00:43]}  Kg7 {[%clk 0:02:01]} 43. Nxg5 {[%clk 0:00:44]}  Bg6 {[%clk 0:02:01]} 44. Kg3 {[%clk 0:00:34]}  Nd3 {[%clk 0:01:51]} 45. Re2 {[%clk 0:00:26]}  Kf6 {[%clk 0:01:51]} 46. Kh4 {[%clk 0:00:09]}  Nf4 {[%clk 0:01:50]} 47. Rf2 {[%clk 0:00:05]}  Rxc2 {[%clk 0:01:50]} 0-1


[Site "https://www.chess.com"]

[Event "Titled Tuesday Blitz January 03 Early 2023"]
[White "Volkov, Maksim"]
[Black "Chigaev, Maksim"]
[WhiteFideId "54123070"]
[BlackFideId "4108116"]
[WhiteElo "2258"]
[BlackElo "2628"]
[Result "0-1"]
[Round "02"]
[TimeControl "180+2"]
[Date "2023.01.03"]
[WhiteClock "0:00:19"]
[BlackClock "0:01:59"]

1. d4 {[%clk 0:03:00]}  Nf6 {[%clk 0:02:59]} 2. c4 {[%clk 0:03:00]}  g6 {[%clk 0:02:59]} 3. Nf3 {[%clk 0:02:59]}  Bg7 {[%clk 0:02:59]} 4. g3 {[%clk 0:03:00]}  O-O {[%clk 0:03:00]} 5. Bg2 {[%clk 0:03:00]}  d6 {[%clk 0:03:01]} 6. O-O {[%clk 0:03:00]}  c5 {[%clk 0:03:02]} 7. Nc3 {[%clk 0:03:00]}  Nc6 {[%clk 0:03:02]} 8. dxc5 {[%clk 0:03:00]}  dxc5 {[%clk 0:03:03]} 9. Bf4 {[%clk 0:03:00]}  Bf5 {[%clk 0:02:47]} 10. Qc1 {[%clk 0:02:39]}  Qc8 {[%clk 0:02:42]} 11. Rd1 {[%clk 0:02:36]}  Rd8 {[%clk 0:02:34]} 12. Rxd8+ {[%clk 0:02:25]}  Qxd8 {[%clk 0:02:35]} 13. Ne5 {[%clk 0:02:24]}  Nd4 {[%clk 0:02:15]} 14. Bxb7 {[%clk 0:02:14]}  Rb8 {[%clk 0:02:15]} 15. Nc6 {[%clk 0:02:13]}  Qd7 {[%clk 0:02:15]} 16. Nxb8 {[%clk 0:01:28]}  Qxb7 {[%clk 0:02:14]} 17. Be5 {[%clk 0:01:06]}  Bh3 {[%clk 0:02:02]} 18. f3 {[%clk 0:01:04]}  Ng4 {[%clk 0:02:03]} 19. Nd7 {[%clk 0:00:19]}  Qxf3 {[%clk 0:01:59]} 0-1


[Site "https://www.chess.com"]

[Event "Titled Tuesday Blitz January 03 Early 2023"]
[White "Gilmanov, Mansur"]
[Black "Movahed, Sina"]
[WhiteFideId "4166868"]
[BlackFideId "42520835"]
[WhiteElo "2356"]
[BlackElo "2340"]
[Result "0-1"]
[Round "02"]
[TimeControl "180+2"]
[Date "2023.01.03"]
[WhiteClock "0:00:02"]
[BlackClock "0:01:07"]

1. d4 {[%clk 0:03:00]}  Nf6 {[%clk 0:02:59]} 2. Bg5 {[%clk 0:03:01]}  c5 {[%clk 0:02:57]} 3. Bxf6 {[%clk 0:03:01]}  gxf6 {[%clk 0:02:57]} 4. d5 {[%clk 0:03:01]}  b5 {[%clk 0:02:56]} 5. g3 {[%clk 0:02:59]}  d6 {[%clk 0:02:53]} 6. Bg2 {[%clk 0:03:00]}  Nd7 {[%clk 0:02:51]} 7. Nf3 {[%clk 0:02:50]}  h5 {[%clk 0:02:45]} 8. Nh4 {[%clk 0:02:43]}  Ne5 {[%clk 0:02:39]} 9. e3 {[%clk 0:02:23]}  Rb8 {[%clk 0:02:35]} 10. f4 {[%clk 0:02:19]}  Ng4 {[%clk 0:02:33]} 11. Qe2 {[%clk 0:02:09]}  f5 {[%clk 0:02:32]} 12. h3 {[%clk 0:01:57]}  Nf6 {[%clk 0:02:32]} 13. Nd2 {[%clk 0:01:45]}  Rg8 {[%clk 0:02:28]} 14. Kf2 {[%clk 0:01:44]}  c4 {[%clk 0:02:27]} 15. Bf3 {[%clk 0:01:31]}  Bb7 {[%clk 0:02:19]} 16. Nxf5 {[%clk 0:01:22]}  Nxd5 {[%clk 0:02:16]} 17. Bxd5 {[%clk 0:01:13]}  Bxd5 {[%clk 0:02:15]} 18. e4 {[%clk 0:01:13]}  Bb7 {[%clk 0:02:12]} 19. Qxh5 {[%clk 0:01:12]}  e6 {[%clk 0:02:06]} 20. Nd4 {[%clk 0:00:56]}  Bg7 {[%clk 0:01:50]} 21. Qxb5+ {[%clk 0:00:51]}  Kf8 {[%clk 0:01:48]} 22. Qxc4 {[%clk 0:00:35]}  Qb6 {[%clk 0:01:44]} 23. c3 {[%clk 0:00:27]}  e5 {[%clk 0:01:29]} 24. fxe5 {[%clk 0:00:24]}  dxe5 {[%clk 0:01:30]} 25. Raf1 {[%clk 0:00:20]}  exd4 {[%clk 0:01:23]} 26. Ke1 {[%clk 0:00:20]}  Qg6 {[%clk 0:01:18]} 27. Qc5+ {[%clk 0:00:16]}  Ke8 {[%clk 0:01:18]} 28. Nc4 {[%clk 0:00:14]}  Rd8 {[%clk 0:01:18]} 29. Qb5+ {[%clk 0:00:06]}  Bc6 {[%clk 0:01:17]} 30. Qf5 {[%clk 0:00:06]}  Qxg3+ {[%clk 0:01:16]} 31. Rf2 {[%clk 0:00:04]}  Rd7 {[%clk 0:01:12]} 32. Nd6+ {[%clk 0:00:04]}  Qxd6 {[%clk 0:01:12]} 33. cxd4 {[%clk 0:00:02]}  Qxd4 {[%clk 0:01:11]} 34. Kf1 {[%clk 0:00:02]}  Qd1+ {[%clk 0:01:06]} 35. Kg2 {[%clk 0:00:02]}  Be5+ {[%clk 0:01:07]} 0-1


[Site "https://www.chess.com"]

[Event "Titled Tuesday Blitz January 03 Early 2023"]
[White "Svane, Rasmus"]
[Black "Ingebretsen, Jens E"]
[WhiteFideId "4657101"]
[BlackFideId "1522965"]
[WhiteElo "2623"]
[BlackElo "2342"]
[Result "1-0"]
[Round "02"]
[TimeControl "180+2"]
[Date "2023.01.03"]
[WhiteClock "0:02:40"]
[BlackClock "0:02:20"]

1. Nf3 {[%clk 0:03:00]}  d5 {[%clk 0:02:58]} 2. g3 {[%clk 0:03:01]}  Bg4 {[%clk 0:02:57]} 3. Bg2 {[%clk 0:03:01]}  e6 {[%clk 0:02:57]} 4. h3 {[%clk 0:03:02]}  Bxf3 {[%clk 0:02:56]} 5. Bxf3 {[%clk 0:03:03]}  c6 {[%clk 0:02:50]} 6. O-O {[%clk 0:03:03]}  Nf6 {[%clk 0:02:50]} 7. d3 {[%clk 0:03:02]}  Be7 {[%clk 0:02:49]} 8. e4 {[%clk 0:03:02]}  O-O {[%clk 0:02:49]} 9. a4 {[%clk 0:03:01]}  Nbd7 {[%clk 0:02:48]} 10. Nd2 {[%clk 0:03:00]}  a5 {[%clk 0:02:42]} 11. Bg2 {[%clk 0:02:59]}  e5 {[%clk 0:02:38]} 12. Qe2 {[%clk 0:02:51]}  Qc7 {[%clk 0:02:36]} 13. Nb3 {[%clk 0:02:48]}  Nc5 {[%clk 0:02:34]} 14. Nxc5 {[%clk 0:02:48]}  Bxc5 {[%clk 0:02:35]} 15. Bg5 {[%clk 0:02:48]}  dxe4 {[%clk 0:02:30]} 16. Bxf6 {[%clk 0:02:48]}  exd3 {[%clk 0:02:29]} 17. Qg4 {[%clk 0:02:48]}  g6 {[%clk 0:02:23]} 18. Qg5 {[%clk 0:02:41]}  Qd6 {[%clk 0:02:20]} 19. Bxe5 {[%clk 0:02:40]} 1-0


[Site "https://www.chess.com"]

[Event "Titled Tuesday Blitz January 03 Early 2023"]
[White "Khripachenko, Alexander"]
[Black "Dardha, Daniel"]
[WhiteFideId "54184975"]
[BlackFideId "240990"]
[WhiteElo "2110"]
[BlackElo "2631"]
[Result "0-1"]
[Round "02"]
[TimeControl "180+2"]
[Date "2023.01.03"]
[WhiteClock "0:00:48"]
[BlackClock "0:00:06"]

1. e4 {[%clk 0:03:00]}  e5 {[%clk 0:02:19]} 2. Nf3 {[%clk 0:03:00]}  Nc6 {[%clk 0:02:18]} 3. Bb5 {[%clk 0:03:00]}  Nf6 {[%clk 0:02:17]} 4. O-O {[%clk 0:03:00]}  Nxe4 {[%clk 0:02:17]} 5. d4 {[%clk 0:03:00]}  Nd6 {[%clk 0:02:17]} 6. dxe5 {[%clk 0:03:01]}  Nxb5 {[%clk 0:02:17]} 7. a4 {[%clk 0:03:01]}  d6 {[%clk 0:02:05]} 8. axb5 {[%clk 0:03:01]}  Nxe5 {[%clk 0:02:04]} 9. Qe2 {[%clk 0:03:01]}  Bg4 {[%clk 0:01:57]} 10. Qe4 {[%clk 0:03:01]}  Bxf3 {[%clk 0:01:53]} 11. gxf3 {[%clk 0:03:02]}  Be7 {[%clk 0:01:53]} 12. f4 {[%clk 0:03:00]}  Nd7 {[%clk 0:01:52]} 13. Qxb7 {[%clk 0:03:00]}  O-O {[%clk 0:01:50]} 14. Nc3 {[%clk 0:03:00]}  Nb6 {[%clk 0:01:43]} 15. Be3 {[%clk 0:02:52]}  Bf6 {[%clk 0:01:41]} 16. Qc6 {[%clk 0:02:19]}  Bxc3 {[%clk 0:01:38]} 17. bxc3 {[%clk 0:02:14]}  Re8 {[%clk 0:01:29]} 18. Kh1 {[%clk 0:02:10]}  Re6 {[%clk 0:01:20]} 19. Rg1 {[%clk 0:01:49]}  d5 {[%clk 0:01:05]} 20. Qc5 {[%clk 0:01:49]}  Qd7 {[%clk 0:01:05]} 21. Bd4 {[%clk 0:01:35]}  Rg6 {[%clk 0:00:42]} 22. Rxg6 {[%clk 0:01:33]}  hxg6 {[%clk 0:00:43]} 23. Qc6 {[%clk 0:01:29]}  Qxc6 {[%clk 0:00:31]} 24. bxc6 {[%clk 0:01:29]}  Nc8 {[%clk 0:00:08]} 25. Be5 {[%clk 0:01:20]}  Ne7 {[%clk 0:00:08]} 26. Ra6 {[%clk 0:01:19]}  f6 {[%clk 0:00:06]} 27. Bxc7 {[%clk 0:01:16]}  Rc8 {[%clk 0:00:06]} 28. Rxa7 {[%clk 0:01:16]}  Nxc6 {[%clk 0:00:07]} 29. Rb7 {[%clk 0:01:16]}  Kh7 {[%clk 0:00:06]} 30. Kg2 {[%clk 0:01:16]}  Ne7 {[%clk 0:00:06]} 31. Bd6 {[%clk 0:01:01]}  Nf5 {[%clk 0:00:06]} 32. Bb4 {[%clk 0:01:02]}  Rc4 {[%clk 0:00:06]} 33. Kf3 {[%clk 0:01:01]}  d4 {[%clk 0:00:07]} 34. cxd4 {[%clk 0:00:48]}  Nxd4+ {[%clk 0:00:08]} 35. Kg2 {[%clk 0:00:48]}  Rxc2 {[%clk 0:00:06]} 36. Bc5 {[%clk 0:00:48]}  Rxc5 {[%clk 0:00:06]} 0-1


[Site "https://www.chess.com"]